Cogmind - Beta 13 @@@ ROGUE MODE // 2024.03.08 @ 21:53:37 Player: SX_7 Result: Destroyed by H-55 Commando with Gauss Rifle Performance ------------- Evolutions (0) 0 Regions Visited (3) 600 Robots Destroyed (42) 210 Value Destroyed (1073) 1073 Prototype IDs (9) 180 Alien Tech Used (0) 0 Bonus (0) 0 TOTAL SCORE: 2063 Bonus ------- None Cogmind --------- Core Integrity 0/250 Matter 290/300 Energy 265/265 System Corruption 0% Temperature Cool (15) Movement Treading (260) Ox1 Location -8/Recycling Parts ------- > --- POWER (1) -------- Improved Ion Engine > --- PROPULSION (2) --- Spiked Treads Spiked Treads > --- UTILITY (2) ------ High-capacity Storage Unit Structural Scanner > --- WEAPON (2) ------- Light Assault Rifle Barrage Gun > --- INVENTORY (20) --- Improved Ion Engine Light Treads Light Treads Light Treads Light Treads Light Treads Large Storage Unit Structural Scanner Utility Shielding Light Armor Plating Light Armor Plating Riot Gun Riot Gun Heavy Riot Gun Medium Laser Beam Rifle Particle Gun Barrage Gun Barrage Gun Hammer Peak State ------------ > --- POWER ------------ Subdweller Power Source > --- PROPULSION ------- Light Treads Light Treads > --- UTILITY ---------- Disposable Heat Sink Makeshift Thermal Plating > --- WEAPON ----------- Beam Rifle Enhanced Flamer > --- INVENTORY -------- Improved Ion Engine Light Treads Particle Gun Subdweller Machine Gun Hammer [Rating: 15] Favorites ----------- Power Improved Ion Engine Engine Improved Ion Engine Propulsion Light Treads Treads Light Treads Utility High-capacity Storage Unit Device Structural Scanner Storage High-capacity Storage Unit Processor Targeting Computer Protection Scrap Shield Weapon Barrage Gun Energy Gun Particle Gun Energy Cannon Beam Cannon Ballistic Gun Barrage Gun Special Weapon Enhanced Flamer Impact Weapon Hammer Build | -11 -10 -10 -8 ------- Run | Yrd Mat Sub Rec Slots Evolved . | . . . . Power . | . . . . Propulsion . | . . . . Utility . | . . . . Weapon . | . . . . Parts Attached 46 | 7 9 30 . Power 6 | 1 2 3 . Engine 6 | 1 2 3 . Core . | . . . . Reactor . | . . . . Propulsion 8 | 2 1 5 . Treads 8 | 2 1 5 . Leg . | . . . . Wheel . | . . . . Hover . | . . . . Flight . | . . . . Utility 15 | 2 4 9 . Device 5 | 1 . 4 . Storage 4 | 1 2 1 . Processor 1 | . 1 . . Hackware . | . . . . Protection 5 | . 1 4 . Artifact . | . . . . Weapon 17 | 2 2 13 . Energy Gun 5 | 1 1 3 . Energy Cannon 3 | . 1 2 . Ballistic Gun 5 | 1 . 4 . Ballistic Cannon . | . . . . Launcher . | . . . . Special Weapon 1 | . . 1 . Impact Weapon 3 | . . 3 . Slashing Weapon . | . . . . Piercing Weapon . | . . . . Special Melee Weapon . | . . . . Unidentified Prototypes . | . . . . Parts Lost 7 | . 1 6 . Power 2 | . 1 1 . Propulsion 1 | . . 1 . Utility 3 | . . 3 . Weapon 1 | . . 1 . Highest Loss Streak 1 | . 1 1 . To Critical Strikes . | . . . . Average Slot Usage (%) 92 | . 99 89 100 Engine 13 | . 13 13 14 Treads 27 | . 28 27 28 Device 6 | . 2 5 14 Storage 7 | . 14 4 14 Protection 8 | . 8 9 . Energy Gun 8 | . 13 7 . Energy Cannon 2 | . 6 1 . Ballistic Gun 14 | . 7 14 28 Special Weapon 1 | . . 2 . Naked Turns 5 | . . 5 . Heaviest Build 56 | 14 56 56 52 Greatest Support 40 | 40 40 40 40 Greatest Overweight (x) 1 | . 1 1 1 Average Overweight (x) . | . . . 1 Largest Inventory Capacity 20 | 8 20 20 20 Average Capacity 11 | 6 16 10 20 Most Carried 20 | 7 18 20 20 Average Carried 10 | 3 13 8 20 Final Capacity 20 | 8 20 20 20 Final Carried 20 | 6 18 20 20 Class Distribution -------------------- 100% | Mutant Dominant Class ---------------- Mutant | -10/Materials Mutant | -10/Subcaves Mutant | -8/Recycling Resources | -11 -10 -10 -8 ----------- Run | Yrd Mat Sub Rec Matter Collected 921 | 263 153 505 . Remotely . | . . . . Salvage Created 1451 | 40 556 855 . Parts 93 | 3 40 50 . Haulers Intercepted 2 | . 2 . . Recyclers Shooed 2 | 1 1 . . Parts Field Recycled . | . . . . Retrieved Matter . | . . . . Parts Self-Destructed 12 | . . 12 . Prevented . | . . . . Kills | -11 -10 -10 -8 ------- Run | Yrd Mat Sub Rec Combat Hostiles Destroyed 28 | . 7 21 . Guns 16 | . 7 9 . Cannons 12 | . . 12 . Classes Destroyed 11 | 1 7 3 . Worker 2 | . 2 . . Tunneler 2 | 2 . . . Hauler 2 | . 2 . . Recycler 2 | . 2 . . Operator 1 | . 1 . . Turret 2 | . . 2 . Watcher 3 | . 3 . . Swarmer 7 | . 3 4 . Grunt 4 | . 4 . . Sentry 1 | . . 1 . Subdweller 16 | . . 16 . Best Kill Streak 3 | 1 3 3 . Combat Bots Only 3 | . 2 3 . Max Kills in Single Turn 1 | 1 1 1 . Gunslinging . | . . . . Exploded . | . . . . Melee . | . . . . Uniques/NPCs Destroyed . | . . . . Combat | -11 -10 -10 -8 -------- Run | Yrd Mat Sub Rec Hostile Shots Fired 233 | . 34 184 15 Missed 80 | . 6 71 3 Damage Taken 1948 | . 399 1381 168 Core 268 | . 122 83 63 Absorbed by Shields . | . . . . Ignored by Resistances 35 | . . 35 . Core Remaining (%) 100 | 100 . . . Volleys Fired 194 | 9 62 121 2 Largest 2 | 2 2 2 2 Hottest 136 | 70 125 136 48 Shots Fired 371 | 18 113 236 4 Gun 288 | 18 106 160 4 Cannon 64 | . 7 57 . Launcher . | . . . . Special 19 | . . 19 . Kinetic 124 | 9 55 56 4 Thermal 247 | 9 58 180 . Explosive . | . . . . Electromagnetic . | . . . . Robot Hit Streak 13 | 3 12 13 13 Robot Miss Streak 8 | 4 8 5 . Penetration Max . | . . . . Secondary Targets . | . . . . Shots Hit Robots 209 | 8 69 128 4 Core Hits 79 | 4 32 42 1 Critical Kills 1 | . . 1 . Critical Parts Destroyed . | . . . . Critical Strikes 15 | 1 6 8 . Burn 14 | 1 6 7 . Destroy 1 | . . 1 . Melee Attacks 14 | . . 14 . Impact 14 | . . 14 . Slashing . | . . . . Piercing . | . . . . Sneak Attacks . | . . . . Combat Hostiles . | . . . . Follow-up Attacks . | . . . . Damage Inflicted 3056 | 95 848 2074 39 Guns 2190 | 95 753 1303 39 Cannons 751 | . 70 681 . Explosions . | . . . . Melee . | . . . . Ramming 25 | . 25 . . Kinetic 831 | 32 264 496 39 Thermal 2200 | 63 559 1578 . Explosive . | . . . . Electromagnetic . | . . . . Impact . | . . . . Slashing . | . . . . Piercing . | . . . . Highest Corruption . | . . . . Average Corruption . | . . . . Corruption Purged . | . . . . Corruption Blocked . | . . . . Overload Shots . | . . . . Overflow Damage . | . . . . Projectiles . | . . . . Explosions . | . . . . Melee . | . . . . Knockbacks . | . . . . Impact . | . . . . Kinetic . | . . . . Secondary . | . . . . Self-Inflicted Damage . | . . . . Shots . | . . . . Rammed 3 | . 3 . . Targets Rammed 4 | . 4 . . Kicked . | . . . . Crushed 1 | . 1 . . Highest Temperature 293 | 70 293 78 15 Average Temperature 57 | 29 105 20 10 Received Heat Transfer 510 | . 210 300 . Siege Activations . | . . . . Robots Corrupted . | . . . . Combat Hostiles . | . . . . Parts Fried . | . . . . Impact Corruptions . | . . . . Robots Melted . | . . . . Combat Hostiles . | . . . . Parts Melted 11 | 1 5 5 . Heat Transferred 6856 | 259 1998 4599 . Parts Sabotaged . | . . . . Parts Stolen . | . . . . Parts Stripped . | . . . . Power Chain Reactions . | . . . . Alert | -11 -10 -10 -8 ------- Run | Yrd Mat Sub Rec Peak Influence 641 | 10 133 . 641 Initial 634 | . 6 . 634 Average 198 | 2 45 . 514 Maximum Alert Level 2 | . . . 2 Low Security (%) 66 | 100 100 . . Level 1 4 | . . . 12 Level 2 29 | . . . 87 Level 3 . | . . . . Level 4 . | . . . . Level 5 . | . . . . High Security . | . . . . Max Security . | . . . . Squads Dispatched 2 | . 2 . . Investigation 2 | . 2 . . Extermination . | . . . . Reinforcement . | . . . . Assault . | . . . . Garrison . | . . . . Intercept . | . . . . Searches Triggered . | . . . . Construction Impeded . | . . . . Haulers Reinforced . | . . . . Active Scanning Responses . | . . . . Cargo Convoy Interrupts . | . . . . Stealth | -11 -10 -10 -8 --------- Run | Yrd Mat Sub Rec Distress Signals 2 | . 2 . . Communications Jammed . | . . . . Distress Signals . | . . . . Times Spotted 73 | . 17 54 2 Peak Tracking Total 6 | . 4 6 2 Tactical Retreats 7 | . . 7 . Traps | -11 -10 -10 -8 ------- Run | Yrd Mat Sub Rec Traps Triggered 3 | . 3 . . Indirectly . | . . . . Trap Hack Attempts . | . . . . Triggered . | . . . . Disarmed . | . . . . Reprogrammed . | . . . . Reused . | . . . . Traps Extracted . | . . . . Installed . | . . . . Triggered . | . . . . Machines | -11 -10 -10 -8 ---------- Run | Yrd Mat Sub Rec Machines Disabled 2 | . . 2 . Max in Single Turn 1 | . . 1 . Machines Repaired . | . . . . Machines Dismantled . | . . . . Machines Sabotaged . | . . . . Overloaded Fab Kills . | . . . . Hacking | -11 -10 -10 -8 --------- Run | Yrd Mat Sub Rec Machines Accessed 16 | . 9 1 6 Terminals 14 | . 8 . 6 Fabricators . | . . . . Repair Stations . | . . . . Recycling Units 1 | . 1 . . Scanalyzers . | . . . . Garrison Access . | . . . . Total Hacks 43 | . 29 2 12 Successful 19 | . 14 2 3 Failed 22 | . 14 . 8 Catastrophic 2 | . 1 . 1 Database Lockouts 2 | . 1 . 1 Manual 41 | . 26 2 13 Terminals 38 | . 26 . 12 Fabricators . | . . . . Repair Stations . | . . . . Recycling Units 3 | . 3 . . Scanalyzers . | . . . . Garrison Access . | . . . . Terminal Hacks 13 | . 8 2 3 Record 2 | . . 2 . Robot Analysis 2 | . 2 . . Prototype ID Bank 7 | . 5 . 2 Branch Access Points 1 | . 1 . . Security Status 1 | . . . 1 Fabricator Hacks . | . . . . Repair Station Hacks . | . . . . Recycling Unit Hacks 2 | . 2 . . Retrieve Components 2 | . 2 . . Scanalyzer . | . . . . Garrison Access Hacks . | . . . . Unauthorized Hacks 4 | . 4 . . Terminals 3 | . 3 . . Botnet 3 | . 3 . . Fabricators . | . . . . Repair Stations . | . . . . Recycling Units 1 | . 1 . . Reject 1 | . 1 . . Scanalyzers . | . . . . Garrison Access . | . . . . Data Cores Recovered . | . . . . Used . | . . . . Hacking Detections 15 | . 9 . 6 Full Trace Events 5 | . 4 . 1 Feedback Events . | . . . . Feedback Blocked . | . . . . Robot Schematics Acquired . | . . . . Robots Built . | . . . . Authchips . | . . . . Time . | . . . . Total Robot Build Rating . | . . . . Part Schematics Acquired . | . . . . Parts Built . | . . . . Authchips . | . . . . Time . | . . . . Total Part Build Rating . | . . . . Parts Repaired . | . . . . Time . | . . . . Parts Recycled . | . . . . Recycled Matter . | . . . . Retrieved Matter . | . . . . Retrieved Components 7 | . 7 . . Parts Scanalyzed . | . . . . Part Schematics Acquired . | . . . . Parts Damaged . | . . . . Bothacking | -11 -10 -10 -8 ------------ Run | Yrd Mat Sub Rec Used RIF Installer . | . . . . Robots Hacked . | . . . . Non-combat . | . . . . Combat . | . . . . Robot Hacks Applied . | . . . . Relay Couplers Released . | . . . . Fabnet Peak Effective % . | . . . . Robots Rewired . | . . . . Allies Hacked . | . . . . Hacks Repelled . | . . . . Allies | -11 -10 -10 -8 -------- Run | Yrd Mat Sub Rec Total Allies . | . . . . Largest Group . | . . . . Highest-Rated Group . | . . . . Highest-Rated Ally . | . . . . Total Orders . | . . . . Ally Attacks . | . . . . Total Damage . | . . . . Kills . | . . . . Allies Corrupted . | . . . . Allies Melted . | . . . . Intel | -11 -10 -10 -8 ------- Run | Yrd Mat Sub Rec Robot Analysis Total 2 | . 2 . . Derelict Logs Recovered . | . . . . Drone Launches . | . . . . Drone Recoveries . | . . . . Exploration | -11 -10 -10 -8 ------------- Run | Yrd Mat Sub Rec Turns Passed 9898 | 263 1543 7181 911 Spaces Moved 4871 | 259 691 3574 347 Core 180 | 177 . 3 . Treads 4691 | 82 691 3571 347 Legs . | . . . . Wheels . | . . . . Hover . | . . . . Flight . | . . . . Fastest Speed 50 | 50 160 50 260 Average Speed 185 | 84 189 184 260 Slowest Speed 260 | 160 240 260 260 Overloaded Moves . | . . . . Propulsion Burnouts . | . . . . Robots Hopped . | . . . . Cave-ins Triggered . | . . . . Exploration Rate (%) 69 | 7 95 94 82 Regions Visited 3 Branch Regions 2 Pre-discovered Areas . | . . . . Known Exits Taken . | . . . . Unknown Exits Taken 3 | 1 1 1 . Scrap Searched 15 | . . 15 . Spaces Dug 3 | . . 3 . Terrain Destroyed 3 | . . 3 . Melee 3 | . . 3 . Projectile . | . . . . AOE . | . . . . Terrain Rammed . | . . . . Walls Destroyed . | . . . . Machines Disabled . | . . . . Actions | -11 -10 -10 -8 --------- Run | Yrd Mat Sub Rec Total 5355 | 286 828 3887 354 Wait 96 | . 18 73 5 Move 4868 | 258 690 3573 347 Hop . | . . . . Pick Up 78 | 12 28 38 . Fast Attach 12 | 1 1 10 . Attach 20 | 6 4 10 . Detach . | . . . . Swap 14 | . 4 10 . Drop 44 | . 17 27 . Fire 194 | 9 62 121 2 Melee 14 | . . 14 . Ram . | . . . . Kick . | . . . . Crush 4 | . 4 . . Escape Stasis . | . . . . Rewire . | . . . . Trap . | . . . . Miscellaneous 11 | . . 11 . Route ------- -11/Scrapyard -10/Materials (discovered 6 exits: [*Mat x3] / *Min x2 / *Sub) -10/Subcaves (discovered 3 exits: [*Mat x2] / *Rec) -8/Recycling (discovered 1 exit: [*Fac]) History --------- Turn | Location | Event 3 | -11/Scrapyard | Discovered new exit (range 14) 264 | -11/Scrapyard | Entered Materials 309 | -10/Materials | Build established: Mutant 644 | -10/Materials | Discovered new exit (range 16) 692 | -10/Materials | Identified exit to Mines 798 | -10/Materials | Discovered new exit (range 16) 1035 | -10/Materials | Central database locked down 1715 | -10/Materials | Discovered new exit (range 13) 1724 | -10/Materials | Discovered new exit (range 7) 1807 | -10/Materials | Entered Subcaves 1947 | -10/Subcaves | A swath of the cavern ceiling suddenly collapsed 2252 | -10/Subcaves | Visited Clippyterm 2347 | -10/Subcaves | A swath of the cavern ceiling suddenly collapsed 2734 | -10/Subcaves | Ambushed by Subdwellers from Twisted Machinery 2755 | -10/Subcaves | Core integrity fell below 50% 3401 | -10/Subcaves | Disturbed a concealed Subdweller 3643 | -10/Subcaves | Discovered new exit (range 15) 3661 | -10/Subcaves | Shifting Twisted Machinery released Battle Rifle 4042 | -10/Subcaves | Shifting Twisted Machinery released Mak. Light Armor Plating 4078 | -10/Subcaves | Discovered new exit (range 11) 4089 | -10/Subcaves | Disturbed a concealed Subdweller 4237 | -10/Subcaves | Shifting Twisted Machinery released Sub. Power Source 6254 | -10/Subcaves | Discovered new exit (range 11) 6265 | -10/Subcaves | Core integrity fell below 20% 8988 | -10/Subcaves | Entered Recycling 9659 | -8/Recycling | Discovered new exit (range 5) 9899 | -8/Recycling | Destroyed by H-55 Commando with Gauss Rifle Last Messages --------------- No active security squads found. 09480_ Connecting with Terminal... >>Prototypes Downloading prototype IDs... Enh. Nuclear Core Adv. EMP Blaster Imp. Spread Laser 09487_ Connecting with Terminal... 09659_ EXIT=FOUND 09802_ Connecting with Terminal... >>Prototypes Downloading prototype IDs... Imp. Cesium-ion Thruster Imp. Flight Unit 09867_ H-55 Commando springs to life. 09867_ Penetrated by Slug. 09870_ Slug penetrates Wall. 09879_ Wall collapses. 09882_ Slug penetrates Wall. 09896_ Penetrated by Slug. Map ----- +----------------------------------------------------+ | ## ## ##### ##### # | | ##+##+##+##### ##### + | | # ##?## ##?## # | | # ????? ?? ##?#######+#########+##### | | # ????? ##### ##### ##?### #### ### | | # ???? ##### ##### ##??## #### ### | | # ???? ##?## ##?## ##??## #### ### | | + ??? ##### ##### ##??## #### ### | | # ? ] ! #####+#####+##??## #### ### | | #= ### ##?## ### ### | | + ### ???### #### + + | | ####/###### ???### #### ### | | ### ###### ????############### ###### | | ##??## ????############## ###### | | ## ##??## ?????????????????### ##???? | | ### ###?????? ??#########??????### ##???? | | ## ####### ##########???????## ##???? | | ##? #############"##### ##???????## #####???? | | ##? ##???????########???? | | ##? ##???????####???????? | | ### ##??????????????????? | | +#####+###########/"#### ##??????????????????? | | #### ! ####h ###??????????????????? | | ##????? #### ###??????????????????? | | #### * #### ##???????????????????? | | #### % ####@ ##???????????????????? | | #### [ | #### ##???????????????????? | | ###= ! #### ##???????????????????? | | #### ! [ #### ##???????????????????? | | ################## ##???????????????????? | | #######"""######## ##???????????????????? | | ###+##########"Y"######## ##???????????????????? | | ##???????????????????? | | ##???????????????????? | | ####?????????????????? | | ###+###################+########?????????????????? | | "T" ####### ##?????????????????? | | ##???## """"" ##?????????????????? | | """ """"" ##???## """"" "" ##?????????????????? | | """ """"" ##???## """"" T" ##?????????????????? | | """ """"" ##???## "" ##?????????????????? | | ##???## ##?????????????????? | | "###########???#####"Y"#########?????????????????? | | "###########???#####"""#########?????????????????? | | ###???????????????######?????????????????????????? | | | | | | | | | | | +----------------------------------------------------+ Best States ------------- Heat Dissipation 25 Coolant Potential 50 Energy Generation 15 Energy Capacity 265 Matter Stores 300 Matter Capacity 300 Sight Range 21 Terrain Scan Density 10 Armor Coverage 800 Resistance: TH 10 Evasion (%) 50 Targeting Accuracy 5 Recoil Reduction 2 Item Schematics ----------------- None Robot Schematics ------------------ None Fabricated ------------ Nothing Alien Tech Used ----------------- None Achievements -------------- None Challenges ------------ None Game ------ Seed RestorationOpticalPick Manual? 0 Play Time 00:48:36 Cumulative 23.0 hours Start 2024.03.08 @ 20:28:32 End 2024.03.08 @ 21:53:37 Sessions 44 Manual Loads 0 Difficulty Rogue Special Mode None Game No. 27 Rogue 26 Adventurer 1 Explorer 0 Win Type - Total 1 Types 1/0/0/0/0/0/0/0/0 Lore% 21 Gallery% 22 Achievement% 23 Wizard Run 0 Options --------- Layout 0 ASCII 0 Keyboard 0 Movement Mouse Keybinds 0 Fullscreen 1 Font 20/X11 Map View 66x50 Zoom Use 0% Tactical HUD 1 Map Filters NONE Filters SHIFT_HUE(10)|LOW_CONTRAST(6,12,16) Steam 1 RUN: 40757619-c16b-45a5-b7ea-bddb4886346f